Cogmind - Beta 13 @@@ ROGUE MODE // 2024.05.09 @ 00:39:57 Player: GayPredator Result: Destroyed by TC-76Q(R) with Subdweller Machine Gun Performance ------------- Evolutions (0) 0 Regions Visited (3) 600 Robots Destroyed (39) 195 Value Destroyed (857) 857 Prototype IDs (2) 40 Alien Tech Used (0) 0 Bonus (0) 0 TOTAL SCORE: 1692 Bonus ------- None Cogmind --------- Core Integrity 0/250 Matter 213/300 Energy 250/250 System Corruption 0% Temperature Cool (0) Movement Rolling (131) Ox3 Location -10/Subcaves Parts ------- > --- POWER (1) -------- Ion Engine > --- PROPULSION (2) --- Wheel Subdweller Monowheel > --- UTILITY (2) ------ Huge Storage Unit Sensor Array > --- WEAPON (2) ------- Light Cannon Rocket Launcher > --- INVENTORY (25) --- Aluminum Leg Aluminum Leg Wheel Heat Sink Compact Matter Pod (140) Structural Scanner Terrain Scanner Seismic Detector ECM Suite Heavy Assault Rifle Mining Laser Peak State ------------ > --- POWER ------------ Ion Engine > --- PROPULSION ------- Wheel Subdweller Monowheel > --- UTILITY ---------- Huge Storage Unit Structural Scanner > --- WEAPON ----------- Heavy Assault Rifle Light Cannon > --- INVENTORY -------- Aluminum Leg Aluminum Leg Wheel Heat Sink Compact Matter Pod Sensor Array Terrain Scanner Seismic Detector ECM Suite Rocket Launcher Mining Laser [Rating: 10] Favorites ----------- Power Ion Engine Engine Ion Engine Propulsion Wheel Leg Aluminum Leg Wheel Wheel Utility Huge Storage Unit Device Seismic Detector Storage Huge Storage Unit Protection Light Armor Plating Weapon Light Cannon Energy Gun Small Laser Ballistic Gun Light Assault Rifle Ballistic Cannon Light Cannon Launcher Rocket Launcher Special Weapon Mining Laser Build | -11 -10 -10 -10 ------- Run | Yrd Mat Min Sub Slots Evolved . | . . . . Power . | . . . . Propulsion . | . . . . Utility . | . . . . Weapon . | . . . . Parts Attached 43 | 7 14 5 17 Power 4 | 1 1 . 2 Engine 4 | 1 1 . 2 Core . | . . . . Reactor . | . . . . Propulsion 14 | 2 5 1 6 Treads . | . . . . Leg 7 | 2 3 . 2 Wheel 7 | . 2 1 4 Hover . | . . . . Flight . | . . . . Utility 12 | 2 5 1 4 Device 5 | 1 1 1 2 Storage 3 | 1 2 . . Processor . | . . . . Hackware . | . . . . Protection 4 | . 2 . 2 Artifact . | . . . . Weapon 13 | 2 3 3 5 Energy Gun 1 | . 1 . . Energy Cannon . | . . . . Ballistic Gun 4 | 2 . 1 1 Ballistic Cannon 5 | . 2 1 2 Launcher 1 | . . . 1 Special Weapon 2 | . . 1 1 Impact Weapon . | . . . . Slashing Weapon . | . . . . Piercing Weapon . | . . . . Special Melee Weapon . | . . . . Unidentified Prototypes . | . . . . Parts Lost 8 | . 1 . 7 Power 2 | . . . 2 Propulsion 1 | . . . 1 Utility 2 | . . . 2 Weapon 3 | . 1 . 2 Highest Loss Streak 3 | . 1 . 3 To Critical Strikes . | . . . . Average Slot Usage (%) 99 | . 99 100 98 Engine 13 | . 14 14 12 Leg 11 | . 21 . . Wheel 16 | . 6 28 27 Device 9 | . 12 . 9 Storage 14 | . 14 14 14 Protection 4 | . 1 13 4 Ballistic Gun 3 | . 4 . 3 Ballistic Cannon 22 | . 22 27 19 Launcher 1 | . . . 4 Naked Turns . | . . . . Heaviest Build 94 | 14 94 94 94 Greatest Support 30 | 20 20 20 30 Greatest Overweight (x) 4 | . 4 4 4 Average Overweight (x) 2 | . 1 4 3 Largest Inventory Capacity 25 | 8 25 25 25 Average Capacity 19 | 7 14 25 25 Most Carried 18 | 5 12 18 18 Average Carried 10 | 3 8 14 12 Final Capacity 25 | 8 25 25 25 Final Carried 18 | 5 12 18 11 Class Distribution -------------------- 81% | Mutant 18% | Scavenger-Mutant Dominant Class ---------------- Mutant | -10/Materials Mutant | -10/Mines Scavenger-Mutant | -10/Subcaves Resources | -11 -10 -10 -10 ----------- Run | Yrd Mat Min Sub Matter Collected 1188 | 222 539 165 262 Remotely . | . . . . Salvage Created 1156 | 36 735 196 189 Parts 77 | 6 43 19 9 Haulers Intercepted 2 | . 2 . . Recyclers Shooed 3 | . 3 . . Parts Field Recycled . | . . . . Retrieved Matter . | . . . . Parts Self-Destructed 3 | . . . 3 Prevented . | . . . . Kills | -11 -10 -10 -10 ------- Run | Yrd Mat Min Sub Combat Hostiles Destroyed 24 | . 13 5 6 Guns 6 | . 4 . 2 Cannons 17 | . 8 5 4 AOE 1 | . 1 . . Classes Destroyed 10 | 1 7 1 1 Worker 2 | . 1 1 . Builder 1 | . 1 . . Tunneler 6 | 2 . 4 . Hauler 2 | . 2 . . Recycler 2 | . 2 . . Watcher 2 | . 2 . . Swarmer 6 | . 3 3 . Grunt 10 | . 10 . . Sentry 2 | . . 2 . Subdweller 6 | . . . 6 Best Kill Streak 4 | 2 4 3 2 Combat Bots Only 3 | . 3 3 2 Max Kills in Single Turn 1 | 1 1 1 1 Gunslinging . | . . . . Exploded 1 | . 1 . . Melee . | . . . . Uniques/NPCs Destroyed . | . . . . Combat | -11 -10 -10 -10 -------- Run | Yrd Mat Min Sub Hostile Shots Fired 124 | . 64 22 38 Missed 37 | . 19 5 13 Damage Taken 1463 | . 576 184 703 Core 258 | . 137 27 94 Absorbed by Shields . | . . . . Core Remaining (%) 100 | 100 . . . Volleys Fired 101 | 4 51 19 27 Largest 2 | 2 2 2 2 Hottest 100 | 40 70 100 100 Shots Fired 195 | 8 102 36 49 Gun 41 | 8 28 1 4 Cannon 147 | . 74 33 40 Launcher 2 | . . . 2 Special 5 | . . 2 3 Kinetic 184 | 8 98 34 44 Thermal 9 | . 4 2 3 Explosive 2 | . . . 2 Electromagnetic . | . . . . Robot Hit Streak 10 | 1 10 8 6 Robot Miss Streak 5 | 4 5 4 2 Penetration Max . | . . . . Secondary Targets 1 | . 1 . . Max Gunslinging Chain 1 | . 1 . . Shots Hit Robots 98 | 2 46 20 30 Core Hits 52 | 2 25 12 13 Critical Kills . | . . . . Critical Parts Destroyed . | . . . . Critical Strikes 2 | . 1 1 . Blast 2 | . 1 1 . Melee Attacks . | . . . . Impact . | . . . . Slashing . | . . . . Piercing . | . . . . Sneak Attacks . | . . . . Combat Hostiles . | . . . . Follow-up Attacks . | . . . . Damage Inflicted 1735 | 35 819 355 526 Guns 233 | 35 142 . 56 Cannons 1375 | . 580 355 440 Explosions 127 | . 97 . 30 Melee . | . . . . Ramming . | . . . . Kinetic 1575 | 35 689 355 496 Thermal 33 | . 33 . . Explosive 127 | . 97 . 30 Electromagnetic . | . . . . Impact . | . . . . Slashing . | . . . . Piercing . | . . . . Highest Corruption . | . . . . Average Corruption . | . . . . Corruption Purged . | . . . . Corruption Blocked . | . . . . Overload Shots . | . . . . Overflow Damage 7 | . 7 . . Projectiles . | . . . . Explosions 7 | . 7 . . Melee . | . . . . Knockbacks 10 | . 3 . 7 Impact . | . . . . Kinetic 10 | . 3 . 7 Secondary . | . . . . Self-Inflicted Damage 111 | . 111 . . Shots 1 | . 1 . . Rammed . | . . . . Targets Rammed . | . . . . Kicked . | . . . . Crushed . | . . . . Highest Temperature 144 | . 75 144 . Average Temperature 27 | . 23 33 . Received Heat Transfer 300 | . 192 63 45 Siege Activations . | . . . . Robots Corrupted . | . . . . Combat Hostiles . | . . . . Parts Fried . | . . . . Impact Corruptions . | . . . . Robots Melted . | . . . . Combat Hostiles . | . . . . Parts Melted . | . . . . Heat Transferred 75 | . 75 . . Parts Sabotaged . | . . . . Parts Stolen . | . . . . Parts Stripped . | . . . . Power Chain Reactions . | . . . . Alert | -11 -10 -10 -10 ------- Run | Yrd Mat Min Sub Peak Influence 241 | 10 241 196 . Initial 6 | . 6 . . Average 99 | 2 90 152 . Maximum Alert Level 1 | . 1 . . Low Security (%) 92 | 100 89 100 . Level 1 7 | . 10 . . Level 2 . | . . . . Level 3 . | . . . . Level 4 . | . . . . Level 5 . | . . . . High Security . | . . . . Max Security . | . . . . Squads Dispatched 3 | . 3 . . Investigation 3 | . 3 . . Extermination . | . . . . Reinforcement . | . . . . Assault . | . . . . Garrison . | . . . . Intercept . | . . . . Searches Triggered . | . . . . Construction Impeded . | . . . . Haulers Reinforced . | . . . . Active Scanning Responses . | . . . . Cargo Convoy Interrupts . | . . . . Stealth | -11 -10 -10 -10 --------- Run | Yrd Mat Min Sub Distress Signals 1 | . 1 . . Communications Jammed . | . . . . Distress Signals . | . . . . Times Spotted 32 | . 17 7 8 Peak Tracking Total 4 | . 4 3 2 Tactical Retreats 2 | . . 1 1 Traps | -11 -10 -10 -10 ------- Run | Yrd Mat Min Sub Traps Triggered 3 | . 3 . . Indirectly . | . . . . Trap Hack Attempts . | . . . . Triggered . | . . . . Disarmed . | . . . . Reprogrammed . | . . . . Reused . | . . . . Traps Extracted . | . . . . Installed . | . . . . Triggered . | . . . . Machines | -11 -10 -10 -10 ---------- Run | Yrd Mat Min Sub Machines Disabled 3 | . 2 1 . Max in Single Turn 1 | . 1 1 . Machines Repaired . | . . . . Machines Dismantled . | . . . . Machines Sabotaged . | . . . . Overloaded Fab Kills . | . . . . Hacking | -11 -10 -10 -10 --------- Run | Yrd Mat Min Sub Machines Accessed 5 | . 5 . . Terminals 5 | . 5 . . Fabricators . | . . . . Repair Stations . | . . . . Recycling Units . | . . . . Scanalyzers . | . . . . Garrison Access . | . . . . Total Hacks 16 | . 16 . . Successful 6 | . 6 . . Failed 10 | . 10 . . Catastrophic 1 | . 1 . . Database Lockouts . | . . . . Manual 3 | . 3 . . Terminals 16 | . 16 . . Fabricators . | . . . . Repair Stations . | . . . . Recycling Units . | . . . . Scanalyzers . | . . . . Garrison Access . | . . . . Terminal Hacks 4 | . 4 . . Robot Analysis 2 | . 2 . . Prototype ID Bank 1 | . 1 . . Security Status 1 | . 1 . . Fabricator Hacks . | . . . . Repair Station Hacks . | . . . . Recycling Unit Hacks . | . . . . Scanalyzer . | . . . . Garrison Access Hacks . | . . . . Unauthorized Hacks 2 | . 2 . . Terminals 2 | . 2 . . Botnet 2 | . 2 . . Fabricators . | . . . . Repair Stations . | . . . . Recycling Units . | . . . . Scanalyzers . | . . . . Garrison Access . | . . . . Data Cores Recovered . | . . . . Used . | . . . . Hacking Detections 5 | . 5 . . Full Trace Events 3 | . 3 . . Feedback Events . | . . . . Feedback Blocked . | . . . . Robot Schematics Acquired . | . . . . Robots Built . | . . . . Authchips . | . . . . Time . | . . . . Total Robot Build Rating . | . . . . Part Schematics Acquired . | . . . . Parts Built . | . . . . Authchips . | . . . . Time . | . . . . Total Part Build Rating . | . . . . Parts Repaired . | . . . . Time . | . . . . Parts Recycled . | . . . . Recycled Matter . | . . . . Retrieved Matter . | . . . . Retrieved Components . | . . . . Parts Scanalyzed . | . . . . Part Schematics Acquired . | . . . . Parts Damaged . | . . . . Bothacking | -11 -10 -10 -10 ------------ Run | Yrd Mat Min Sub Used RIF Installer . | . . . . Robots Hacked . | . . . . Non-combat . | . . . . Combat . | . . . . Robot Hacks Applied . | . . . . Relay Couplers Released . | . . . . Fabnet Peak Effective % . | . . . . Robots Rewired . | . . . . Allies Hacked . | . . . . Hacks Repelled . | . . . . Allies | -11 -10 -10 -10 -------- Run | Yrd Mat Min Sub Total Allies . | . . . . Largest Group . | . . . . Highest-Rated Group . | . . . . Highest-Rated Ally . | . . . . Total Orders . | . . . . Ally Attacks . | . . . . Total Damage . | . . . . Kills . | . . . . Allies Corrupted . | . . . . Allies Melted . | . . . . Intel | -11 -10 -10 -10 ------- Run | Yrd Mat Min Sub Robot Analysis Total 2 | . 2 . . Derelict Logs Recovered 1 | . . . 1 Drone Launches . | . . . . Drone Recoveries . | . . . . Exploration | -11 -10 -10 -10 ------------- Run | Yrd Mat Min Sub Turns Passed 2514 | 74 1277 345 818 Spaces Moved 1386 | 45 606 192 543 Core 11 | 11 . . . Treads . | . . . . Legs 448 | 34 414 . . Wheels 927 | . 192 192 543 Hover . | . . . . Flight . | . . . . Fastest Speed 50 | 50 120 140 119 Average Speed 146 | 102 166 140 131 Slowest Speed 400 | 120 400 140 140 Overloaded Moves . | . . . . Propulsion Burnouts . | . . . . Robots Hopped . | . . . . Cave-ins Triggered . | . . . . Exploration Rate (%) 41 | 3 75 57 30 Regions Visited 3 Branch Regions 2 Pre-discovered Areas . | . . . . Known Exits Taken . | . . . . Unknown Exits Taken 3 | 1 1 1 . Scrap Searched 2 | . . 1 1 Spaces Dug . | . . . . Terrain Destroyed 53 | . 41 . 12 Melee . | . . . . Projectile . | . . . . AOE 53 | . 41 . 12 Terrain Rammed . | . . . . Walls Destroyed . | . . . . Machines Disabled . | . . . . Actions | -11 -10 -10 -10 --------- Run | Yrd Mat Min Sub Total 1654 | 62 778 226 588 Wait 88 | 1 83 4 . Move 1383 | 44 605 191 543 Hop . | . . . . Pick Up 24 | 6 12 6 . Fast Attach 10 | 6 4 . . Attach 10 | 1 2 . 7 Detach . | . . . . Swap 23 | . 8 5 10 Drop 15 | . 13 1 1 Fire 101 | 4 51 19 27 Melee . | . . . . Ram . | . . . . Kick . | . . . . Crush . | . . . . Escape Stasis . | . . . . Rewire . | . . . . Trap . | . . . . Miscellaneous . | . . . . Route ------- -11/Scrapyard -10/Materials (discovered 3 exits: [*Mat x2] / [*Min]) -10/Mines (discovered 2 exits: [*Mat] / [*Sub]) -10/Subcaves History --------- Turn | Location | Event 7 | -11/Scrapyard | Discovered new exit (range 15) 75 | -11/Scrapyard | Entered Materials 316 | -10/Materials | Build established: Mutant 329 | -10/Materials | Discovered new exit (range 6) 648 | -10/Materials | Core integrity fell below 50% 989 | -10/Materials | Discovered new exit (range 16) 1331 | -10/Materials | Discovered new exit (range 16) 1352 | -10/Materials | Entered Mines 1413 | -10/Mines | Discovered new exit (range 11) 1545 | -10/Mines | Received a Rocket Launcher from a helpful Derelict 1686 | -10/Mines | Discovered new exit (range 4) 1697 | -10/Mines | Entered Subcaves 1772 | -10/Subcaves | Core integrity fell below 20% 1807 | -10/Subcaves | Lost 3 parts (1p1n1u) 1969 | -10/Subcaves | Ambushed by Subdwellers from Twisted Machinery 1992 | -10/Subcaves | Ambushed by Subdweller buried in earth 2042 | -10/Subcaves | Ambushed by Subdweller buried in earth 2353 | -10/Subcaves | Build established: Scavenger-Mutant 2505 | -10/Subcaves | Learned Materials stockpile data 2515 | -10/Subcaves | Destroyed by TC-76Q(R) with Subdweller Machine Gun Last Messages --------------- 02000_ 12-CY5(R) destroyed. 02003_ Acquired 46 matter. 02008_ NS-ETK(u) builds Twisted Machinery. 02042_ Ion Engine destroyed. 02043_ 0O-QDX(R): "ARGHSUB!" 02043_ Lgt. Cannon destroyed. 02052_ 0O-QDX(R) knocked back. 02052_ 0O-QDX(R) destroyed. 02055_ TX-YE5(R) destroyed. 02059_ Acquired 4 matter. 02061_ Acquired 25 matter. 02063_ Acquired 3 matter. 02103_ JG-NA5(u) tweaks Twisted Machinery. 02108_ NS-ETK(u) builds Twisted Machinery. 02142_ Acquired 40 matter. 02143_ Acquired 3 matter. 02202_ Acquired 14 matter. 02204_ Acquired 8 matter. 02505_ Acquired derelict log, extracted data. Data stored: Materials stockpile data. Map ----- +----------------------------------------------------+ | ?????????????????????????????????????????????????? | | ?????????????????????????????????????????????????? | | ?????????????????????????????????????????????????# | | ????????????????????????????????????????????????## | | ????????????????????????????????????????????????# | | ????????????????????????????????????????????????# | | ????????????????????????????????????????????????## | | ?????????????????????????????????????????????????? | | ?????????????????????????????????????????????????? | | ?????????????????????????????????????????????????? | | ??????????????????????? ??????????????????????? | | ?????????????????????## ??????????????????????? | | ???????????????????## ??????????????????????? | | ???????????????? ## ! ??????????????????????? | | ??????????????? ??????????????????????? | | ??????????????? R ??????????????????????? | | ???????????????? ??????????????????????? | | ????????????????? ??????????????????????? | | ?????????????????? ??????????????????????? | | ??????????????????? #??????????????????????? | | ????????????????????# #??????????????????????? | | ????????????????????# #??????????????????????? | | ????????????????????# ##?????????????????????? | | ?????????????????????# ##????????????????????? | | ?????????????????????# ##???????????????????? | | ??????????????????????# @ ###?????????????????? | | ??????????????????????#### #?????????????????? | | ?????????????????????????## ##?????????????????? | | ??????????????????????????# #??????????????????? | | ??????????????????????????# #######????????????? | | ??????????????????????????# ###########?????????? | | ?????????????????????????## ### #####???##??### | | ????????????????????#????# ### ###?## ### | | ????????????????????# ???## ## ##### | | ??????????????????#""""#### # ####### | | ????????????????? """""" ### ## # | | ????????????????? """ ## # | | ?????????????????""""" ## | | ??????????????????"""" ## | | ???????????????????####### ### ######## | | ????????????????????????### #### ########### # | | ????????????????????????##############???????##### | | ?????????????????????????####??######????????????? | | ?????????????????????????????????????????????????? | | ?????????????????????????????????????????????????? | | ?????????????????????????????????????????????????? | | ?????????????????????????????????????????????????? | | ?????????????????????????????????????????????????? | | ?????????????????????????????????????????????????? | | ?????????????????????????????????????????????????? | +----------------------------------------------------+ Best States ------------- Heat Dissipation 25 Energy Generation 10 Energy Capacity 250 Matter Stores 300 Matter Capacity 300 Sight Range 16 Robot Scan Range 14 Terrain Scan Density 10 Armor Coverage 150 Evasion (%) 55 Item Schematics ----------------- None Robot Schematics ------------------ None Fabricated ------------ Nothing Alien Tech Used ----------------- None Achievements -------------- None Challenges ------------ None Game ------ Seed AlertLightpackGreatsword Manual? 0 Play Time 00:22:02 Cumulative 89.4 hours Start 2024.05.09 @ 00:19:04 End 2024.05.09 @ 00:39:57 Sessions 1 Manual Loads 0 Difficulty Rogue Special Mode None Game No. 70 Rogue 31 Adventurer 32 Explorer 7 Win Type - Total 0 Types 0/0/0/0/0/0/0/0/0 Lore% 26 Gallery% 58 Achievement% 42 Wizard Run 0 Options --------- Layout 1 ASCII 0 Keyboard 0 Movement Numpad Keybinds 0 Fullscreen 0 Font 16/Smallcaps Map View 64x42 Zoom Use 0% Tactical HUD 1 Map Filters NONE Filters NONE Steam 1 RUN: dbefcc2c-1c34-4acc-a753-d74ffc1a8c1f